bitfinex-derivatives/quotes_SOLF0:USTF0_20250518
["timestamp","ask_amount","ask_price","bid_price","bid_amount"]
[1747580010479,5.7219,174.71,174.65,144.5]
[1747580010672,72.16,174.74,174.65,144.5]
[1747580010874,72.16,174.74,174.67,5.723]
[1747580011075,5.7224,174.7,174.67,5.723]
[1747580011275,72.16,174.74,174.65,144.5]
[1747580011471,72.64,174.75,174.65,144.5]
[1747580011880,71.84,174.77,174.65,144.5]
[1747580012082,5.7206,174.75,174.72,5.7214]
[1747580012282,144.38,174.79,174.65,144.5]
[1747580012673,72.64,174.79,174.65,144.5]
[1747580012879,72.64,174.79,174.65,157.76903459]
[1747580013277,5.7201,174.77,174.74,5.7208]
[1747580013678,5.7201,174.77,174.71,144.38]
[1747580013877,5.7201,174.77,174.74,5.7208]
[1747580014078,5.7197,174.78,174.72,1.884]
[1747580014484,567.34,174.83,174.72,1.884]
[1747580014685,71.56,174.82,174.73,1.9305]
[1747580014877,638.86,174.83,174.73,1.9305]
[1747580015076,638.86,174.83,174.74,5.7208]
[1747580015779,638.86,174.83,174.73,1.9305]
[1747580015977,5.7195,174.79,174.73,1.9305]
[1747580016177,5.7195,174.79,174.75,5.7203]
[1747580017780,5.7197,174.78,174.75,5.7203]
[1747580017986,71.5,174.82,174.73,1.9305]
[1747580018488,5.7193,174.79,174.75,5.7203]
[1747580018785,72.62,174.87,174.76,72.62]
[1747580019088,143.86,174.87,174.76,72.62]
[1747580019688,5.7198,174.78,174.74,5.7209]
[1747580020490,71.28,174.81,174.73,1.9305]
[1747580020684,71.28,174.81,174.72,145.824]
[1747580020881,71.28,174.81,174.72,1.884]
[1747580021184,5.7209,174.75,174.72,1.884]
[1747580021780,5.721,174.74,174.72,1.884]
[1747580022086,71.28,174.81,174.72,1.884]
[1747580022687,71.28,174.81,174.69,143.78]
[1747580022985,71.28,174.81,174.7,5.7222]
[1747580023187,71.28,174.81,174.69,143.78]
[1747580023188,71.28,174.81,174.69,72.6]
[1747580023385,13.26903459,174.8,174.67,1.9121]
[1747580023587,5.7219,174.71,174.67,7.6352]
[1747580023776,70.92,174.74,174.67,1.9121]
[1747580023979,143.48,174.75,174.67,1.9121]
[1747580024481,143.48,174.75,174.68,5.7227]
[1747580024688,143.48,174.75,174.67,6.8128998]
[1747580025691,143.48,174.75,174.69,5.7223]
[1747580025883,143.48,174.75,174.67,6.8128998]
[1747580026189,5.7211,174.74,174.7,5.722]
[1747580026787,143.48,174.75,174.69,5.7225]
[1747580027189,5.7219,174.71,174.68,4.9007998]
[1747580027390,5.7219,174.71,174.68,10.6236998]
[1747580027685,143.48,174.75,174.68,4.9007998]
[1747580028093,143.48,174.75,174.67,1.9121]
[1747580028288,5.7225,174.7,174.67,1.9121]
[1747580028793,5.7228,174.69,174.64,30.1794]
[1747580029394,5.7228,174.69,174.65,5.7237]
[1747580029994,5.723,174.68,174.65,4.8981681]
[1747580030193,143.48,174.75,174.65,4.8981681]
[1747580030594,5.7232,174.67,174.65,4.8981681]
[1747580031194,5.7232,174.67,174.64,35.9035]
[1747580031493,5.723,174.68,174.64,35.9035]
[1747580031890,143.48,174.75,174.62,7.6503]
[1747580032089,5.7239,174.65,174.62,1.9255]
[1747580032287,71.0,174.69,174.62,1.9255]
[1747580033091,71.0,174.69,174.62,7.6501]
[1747580033395,71.0,174.69,174.58,104.4613]
[1747580033692,5.7241,174.65,174.61,5.7252]
[1747580033893,71.0,174.69,174.58,104.4613]
[1747580034294,5.7241,174.65,174.58,104.4613]
[1747580034698,71.0,174.69,174.58,104.4613]
[1747580034898,71.0,174.69,174.59,4.88068249]
[1747580035293,72.8518,174.69,174.59,4.88068249]
[1747580035597,72.8518,174.69,174.59,10.60648249]
[1747580035998,72.8518,174.69,174.59,4.88068249]
[1747580036298,5.7246,174.63,174.59,4.88068249]
[1747580036497,70.8,174.65,174.59,4.88068249]
[1747580036700,5.7245,174.64,174.59,10.60618249]
[1747580037196,70.8,174.65,174.58,33.6813]
[1747580038098,70.8,174.65,174.58,39.4074]
[1747580038490,5.7248,174.63,174.58,39.4074]
[1747580038691,507.78903459,174.8,174.59,142.52]
[1747580038985,1.8518,174.76,174.59,142.52]
[1747580039193,1.8518,174.76,174.65,5.7237]
[1747580039394,5.7224,174.7,174.65,5.7237]
[1747580039798,142.4,174.73,174.64,5.7241]
[1747580040400,142.4,174.73,174.63,5.7245]
[1747580040601,142.4,174.73,174.6,4.88068249]
[1747580040800,5.7231,174.68,174.6,4.88068249]
[1747580040999,142.4,174.73,174.6,4.88068249]
[1747580041300,142.4,174.73,174.61,1.9658]
[1747580041492,142.4,174.73,174.62,3.9078]
[1747580042195,5.7225,174.7,174.62,3.9078]
[1747580042398,142.4,174.73,174.62,3.9078]
[1747580042599,70.82,174.73,174.63,75.70068249]
[1747580042802,70.82,174.73,174.67,5.7232]
[1747580043196,70.82,174.73,174.63,75.70068249]
[1747580044307,5.7223,174.7,174.64,4.88068249]
[1747580044599,5.7226,174.69,174.66,5.7233]
[1747580044805,5.7226,174.69,174.64,4.88068249]
[1747580045106,5.7223,174.7,174.66,5.7233]
[1747580045305,70.82,174.73,174.64,4.88068249]
[1747580045599,70.82,174.73,174.64,76.12068249]
[1747580045807,5.7218,174.72,174.64,71.24]
[1747580046005,70.82,174.73,174.64,71.24]
[1747580046806,70.82,174.73,174.63,70.82]
[1747580047205,5.7234,174.67,174.63,76.5445]
[1747580047403,5.7234,174.67,174.63,70.82]
[1747580047604,5.7234,174.67,174.63,76.5444]
[1747580047800,5.7236,174.66,174.63,76.5444]
[1747580048206,5.7236,174.66,174.63,5.7244]
[1747580048407,71.22,174.71,174.63,5.7244]
[1747580049010,5.7233,174.67,174.63,5.7244]
[1747580049610,71.22,174.71,174.6,71.16]
[1747580049811,71.22,174.71,174.59,70.82]
[1747580050013,5.724,174.65,174.61,5.725]
[1747580050311,70.82,174.68,174.59,70.82]
[1747580050921,5.7238,174.66,174.62,5.7246]
[1747580051410,70.82,174.68,174.62,5.7246]
[1747580051612,70.82,174.68,174.6,10.59974771]
[1747580052009,70.82,174.68,174.6,4.87454771]
[1747580052513,70.82,174.68,174.59,70.82]
[1747580052716,5.7238,174.66,174.62,5.7248]
[1747580052910,15.12083459,174.76,174.59,70.82]
[1747580053116,70.82,174.78,174.62,70.84]
[1747580053417,70.82,174.78,174.7,5.722]
[1747580053608,70.82,174.78,174.67,141.66]
[1747580054005,5.721,174.74,174.7,5.7221]
[1747580054209,70.82,174.78,174.67,141.66]
[1747580055014,5.7212,174.74,174.7,5.7222]
[1747580055617,5.7213,174.73,174.7,5.7222]
[1747580056019,5.7213,174.73,174.69,5.7225]
[1747580056319,5.7213,174.73,174.67,141.66]
[1747580057118,70.84,174.77,174.67,141.66]
[1747580057613,5.7215,174.73,174.67,141.66]
[1747580057816,70.84,174.77,174.69,5.7223]
[1747580058018,70.84,174.77,174.67,141.66]
[1747580058214,70.84,174.77,174.67,70.82]
[1747580058409,70.84,174.77,174.68,5.7228]
[1747580058618,5.7218,174.72,174.68,5.7228]
[1747580058920,70.84,174.77,174.68,5.7228]
[1747580059118,5.722,174.71,174.67,76.5431]
[1747580059309,70.84,174.77,174.67,70.82]
[1747580059620,70.84,174.77,174.64,3.7446]
[1747580060918,1.8471,174.76,174.64,9.4687]
[1747580061314,15.11613459,174.76,174.64,1.8538]
[1747580061808,15.11613459,174.76,174.62,70.8]
[1747580062010,5.7242,174.65,174.61,7.7324]
[1747580062215,70.82,174.68,174.61,2.0073]
[1747580062518,5.7244,174.64,174.61,2.0073]
[1747580062725,70.82,174.68,174.6,10.93454491]
[1747580062923,70.82,174.68,174.6,5.20904491]
[1747580063324,5.7248,174.63,174.6,5.20904491]
[1747580063524,70.82,174.68,174.6,5.20904491]
[1747580063927,5.7251,174.62,174.6,5.20904491]
[1747580064519,5.7252,174.61,174.59,1.91]
[1747580064919,84.08903459,174.68,174.58,33.6813]
[1747580065229,85.93673459,174.68,174.58,33.6813]
[1747580066518,5.7258,174.59,174.58,33.6813]
[1747580066719,76.5458,174.59,174.58,33.6813]
[1747580067222,76.5458,174.59,174.54,5.20904491]
[1747580067223,5.7271,174.55,174.54,5.20904491]
[1747580069027,70.82,174.59,174.49,201.93296983]
[1747580069227,70.82,174.59,174.49,196.20396983]
[1747580070127,5.7281,174.52,174.49,125.38396983]
[1747580070718,76.5676,174.54,174.49,125.38396983]
[1747580070917,70.84,174.57,174.49,125.38396983]
[1747580071121,494.74,174.69,174.49,125.38396983]
[1747580071322,13.26903459,174.68,174.5,82.2975]
[1747580071523,1.8107,174.72,174.52,13.26903459]
[1747580071724,5.7258,174.6,174.53,145.559]
[1747580072226,141.7,174.66,174.56,5.7268]
[1747580072423,5.7255,174.6,174.54,1.8451]
[1747580072729,141.7,174.66,174.54,1.8451]
[1747580073021,5.7254,174.61,174.54,1.8451]
[1747580073225,70.84,174.64,174.54,1.8451]
[1747580073832,70.84,174.64,174.56,5.7266]
[1747580074027,70.84,174.64,174.54,1.8451]
[1747580074433,70.84,174.64,174.56,5.7268]
[1747580074630,5.7254,174.61,174.56,5.7268]
[1747580075425,5.7254,174.61,174.57,5.7265]
[1747580076436,70.84,174.64,174.54,1.8451]
[1747580077038,5.7258,174.6,174.55,5.7271]
[1747580077539,70.84,174.64,174.54,7.5725]
[1747580077730,70.84,174.64,174.54,1.8451]
[1747580078036,5.7273,174.55,174.5,5.7287]
[1747580078237,70.82,174.57,174.49,196.24396983]
[1747580078437,70.82,174.57,174.49,70.86]
[1747580078739,5.7277,174.54,174.49,76.5891]
[1747580078931,5.7277,174.54,174.49,70.86]
[1747580079134,70.82,174.57,174.49,70.86]
[1747580079326,5.7277,174.54,174.49,70.86]
[1747580079533,70.82,174.57,174.49,70.86]
[1747580079731,70.82,174.57,174.47,1.8591]
[1747580080343,70.82,174.57,174.45,1.871]
[1747580080533,1.8488,174.56,174.45,1.871]
[1747580080929,5.7292,174.49,174.44,1.9735]
[1747580081135,70.82,174.51,174.44,1.9735]
[1747580081441,76.5487,174.51,174.46,5.7301]
[1747580081640,70.82,174.51,174.44,1.9735]
[1747580081941,76.5485,174.51,174.46,5.7299]
[1747580082645,70.82,174.55,174.44,1.9735]
[1747580084837,70.82,174.55,174.47,5.7295]
[1747580085048,70.82,174.55,174.44,1.9735]
[1747580085236,70.86,174.56,174.44,1.9735]
[1747580085554,141.68,174.56,174.5,5.7287]
[1747580085844,5.7275,174.54,174.44,1.9735]
[1747580086444,5.7278,174.53,174.49,5.7289]
[1747580086941,5.7281,174.52,174.49,5.7289]
[1747580087141,141.68,174.56,174.47,70.88]
[1747580088549,5.728,174.53,174.49,5.7289]
[1747580088742,141.68,174.56,174.47,70.88]
[1747580089045,5.7274,174.55,174.51,5.7284]
[1747580089249,141.68,174.56,174.48,1.963]
[1747580089548,5.728,174.53,174.49,5.729]
[1747580089753,141.68,174.56,174.48,1.963]
[1747580090352,70.82,174.56,174.49,1.9747]
[1747580090852,70.82,174.59,174.51,5.7282]
[1747580091054,70.82,174.59,174.49,1.9747]
[1747580091956,5.728,174.53,174.49,7.7036]
[1747580092654,70.82,174.59,174.49,1.9747]
[1747580092851,70.82,174.6,174.49,1.9747]
[1747580093054,70.82,174.59,174.49,1.9747]
[1747580093353,70.82,174.59,174.49,7.7035]
[1747580093554,70.82,174.59,174.49,1.9747]
[1747580093855,5.7279,174.53,174.49,1.9747]
[1747580094861,5.7275,174.54,174.49,1.9747]
[1747580095153,70.82,174.59,174.49,7.7036]
[1747580095346,70.82,174.59,174.49,1.9747]
[1747580095755,70.82,174.59,174.49,7.7035]
[1747580095956,5.7277,174.54,174.49,7.7035]
[1747580096152,5.7277,174.54,174.49,1.9747]
[1747580096554,5.7277,174.54,174.5,5.7287]
[1747580097056,5.7278,174.53,174.5,5.7287]
[1747580097354,5.7278,174.53,174.49,7.7037]
[1747580097556,70.82,174.59,174.49,1.9747]
[1747580098655,5.7282,174.52,174.49,1.9747]
[1747580098955,70.82,174.54,174.44,72.7935]
[1747580099155,70.82,174.54,174.45,5.7302]
[1747580099156,5.729,174.5,174.45,5.7302]
[1747580099459,5.729,174.5,174.44,72.7935]
[1747580100055,5.729,174.5,174.45,5.7303]
[1747580100258,5.7292,174.49,174.45,5.7303]
[1747580100559,70.82,174.54,174.46,5.7301]
[1747580100757,5.7289,174.5,174.46,5.7301]
[1747580101351,70.82,174.54,174.44,72.7935]
[1747580101961,5.7285,174.51,174.47,5.7295]
[1747580102255,70.82,174.54,174.47,5.7295]
[1747580102555,70.82,174.54,174.46,5.73]
[1747580102755,70.82,174.54,174.44,72.7935]
[1747580103348,70.82,174.54,174.44,70.82]
[1747580104262,70.82,174.54,174.46,5.7299]
[1747580105058,5.729,174.5,174.46,5.7299]
[1747580105261,5.729,174.5,174.45,5.7303]
[1747580105460,70.82,174.54,174.45,5.7303]
[1747580105759,11.4485,174.64,174.44,70.82]
[1747580105950,10.41334017,174.58,174.45,1.8698]
[1747580106262,5.728,174.53,174.49,5.729]
[1747580106558,141.66,174.57,174.45,1.8698]
[1747580107261,141.66,174.57,174.45,72.6898]
[1747580107453,141.66,174.57,174.49,5.7289]
[1747580107865,5.7277,174.54,174.5,5.7287]
[1747580108164,141.66,174.57,174.45,72.6898]
[1747580108465,5.7274,174.55,174.51,5.7281]
[1747580108762,141.66,174.57,174.51,5.7281]
[1747580108964,5.7273,174.55,174.51,5.7281]
[1747580109665,5.7275,174.54,174.51,5.7281]
[1747580110163,5.7272,174.55,174.51,5.7281]
[1747580111067,141.66,174.57,174.52,5.7281]
[1747580111270,141.66,174.57,174.45,72.6898]
[1747580112166,70.84,174.57,174.48,10.41334017]
[1747580112361,1.8519,174.63,174.49,74.5231]
[1747580112362,70.8,174.59,174.49,74.5231]
[1747580112557,70.8,174.61,174.5,70.8]
[1747580113367,5.7263,174.58,174.53,5.7277]
[1747580113667,5.7263,174.58,174.5,70.8]
[1747580114062,5.7263,174.58,174.51,4.81940454]
[1747580114569,5.7265,174.57,174.53,5.7278]
[1747580114765,70.8,174.61,174.53,5.7278]
[1747580114963,81.21334017,174.61,174.51,4.81940454]
[1747580115164,81.21334017,174.61,174.5,70.8]
[1747580116473,5.7259,174.59,174.55,5.7269]
[1747580116769,70.78,174.61,174.5,70.8]
[1747580117071,5.7256,174.6,174.56,5.7266]
[1747580117374,141.6,174.62,174.5,70.8]
[1747580117571,76.5449,174.62,174.51,10.41334017]
[1747580117765,1.145213,174.64,174.54,10.41334017]
[1747580117961,1.145213,174.64,174.55,141.6]
[1747580118159,1.145213,174.64,174.59,5.7258]
[1747580118565,5.7246,174.63,174.6,5.7255]
[1747580118962,5.7246,174.63,174.56,1.8943]
[1747580119163,5.7251,174.62,174.58,5.7259]
[1747580119469,141.6,174.66,174.58,5.7259]
[1747580119665,5.7256,174.6,174.57,4.8163666]
[1747580120271,5.7254,174.61,174.57,10.5425666]
[1747580120671,141.6,174.66,174.57,10.5425666]
[1747580120871,141.6,174.66,174.57,4.8163666]
[1747580121169,141.6,174.66,174.55,143.5057]
[1747580121372,5.7253,174.61,174.55,143.5057]
[1747580121963,5.7255,174.6,174.57,5.7264]
[1747580122168,141.6,174.66,174.55,143.5057]
[1747580122369,10.41334017,174.65,174.55,141.6]
[1747580122570,5.7258,174.6,174.55,141.6]
[1747580122769,5.7258,174.6,174.55,70.82]
[1747580122974,10.41334017,174.65,174.55,70.82]
[1747580123171,5.7251,174.62,174.55,70.82]
[1747580123475,141.6,174.66,174.57,5.7262]
[1747580123678,5.725,174.62,174.55,70.82]
[1747580123877,70.76,174.65,174.55,70.82]
[1747580124173,70.76,174.65,174.57,5.7262]
[1747580124370,70.82,174.66,174.55,70.82]
[1747580124575,70.76,174.65,174.6,5.7254]
[1747580124775,5.7245,174.64,174.6,5.7254]
[1747580125578,5.7246,174.63,174.6,5.7254]
[1747580125776,495.0,174.76,174.63,5.7244]
[1747580126082,143.3225,174.73,174.63,5.7244]
[1747580126274,5.723,174.68,174.6,70.74]
[1747580126477,143.3225,174.73,174.6,70.74]
[1747580126672,72.5825,174.73,174.6,70.74]
[1747580126875,5.7231,174.68,174.64,5.724]
[1747580127068,70.74,174.72,174.6,70.74]
[1747580127272,5.7231,174.68,174.6,70.74]
[1747580127479,70.74,174.72,174.6,81.15334017]
[1747580127778,5.7227,174.69,174.6,81.15334017]
[1747580128283,5.7229,174.68,174.61,4.79560257]
[1747580128476,5.7229,174.68,174.61,75.53560257]
[1747580128881,5.7233,174.67,174.61,75.53560257]
[1747580129179,143.3225,174.73,174.61,75.53560257]
[1747580129373,72.5825,174.73,174.61,75.53560257]
[1747580129576,5.7232,174.67,174.61,75.53560257]
[1747580130181,70.72,174.72,174.65,5.7238]
[1747580130890,5.7232,174.68,174.64,5.7241]
[1747580131182,5.7232,174.68,174.61,70.74]
[1747580131378,70.72,174.72,174.61,70.74]
[1747580131981,5.7236,174.66,174.63,5.7245]
[1747580132176,70.72,174.72,174.61,70.74]
[1747580132577,70.72,174.72,174.63,5.7243]
[1747580132780,70.72,174.72,174.61,70.74]
[1747580133085,5.7231,174.68,174.64,5.7241]
[1747580133276,70.72,174.72,174.64,5.7241]
[1747580133584,70.72,174.72,174.62,5.7245]
[1747580133784,70.72,174.72,174.61,70.74]
[1747580135085,70.72,174.72,174.63,5.7242]
[1747580135786,5.7234,174.67,174.63,5.7242]
[1747580136084,70.72,174.72,174.63,5.7242]
[1747580136286,5.7237,174.66,174.62,5.7248]
[1747580136490,70.72,174.72,174.62,5.7248]
[1747580136889,5.7239,174.65,174.62,5.7248]
[1747580137081,5.7239,174.65,174.61,70.74]
[1747580137082,5.7239,174.65,174.61,76.4651]
[1747580137283,70.72,174.72,174.61,70.74]
[1747580137479,5.7234,174.67,174.61,70.74]
[1747580138079,5.7237,174.66,174.63,5.7243]
[1747580138388,5.7237,174.66,174.61,70.74]
[1747580138684,5.7237,174.66,174.62,5.7246]
[1747580138985,5.7237,174.66,174.61,70.74]
[1747580139886,5.7243,174.64,174.61,70.74]
[1747580141586,5.7243,174.64,174.61,76.4649]
[1747580141786,70.74,174.73,174.61,70.74]
[1747580142083,141.4,174.73,174.61,70.74]
[1747580142682,5.7236,174.66,174.63,5.7245]
[1747580142984,141.4,174.73,174.61,70.74]
[1747580143386,141.4,174.73,174.66,5.7233]
[1747580143884,141.4,174.73,174.61,70.74]
[1747580144284,5.7235,174.67,174.63,5.7243]
[1747580144480,10.41334017,174.72,174.61,70.74]
[1747580144680,12.26224017,174.72,174.61,70.74]
[1747580145386,12.26224017,174.72,174.63,5.7244]
[1747580145588,12.26224017,174.72,174.61,70.74]
[1747580146487,5.7232,174.67,174.63,5.7243]
[1747580146984,12.26224017,174.72,174.63,5.7243]
[1747580147283,141.4,174.73,174.61,70.74]
[1747580148782,5.7234,174.67,174.62,5.7245]
[1747580149184,141.4,174.73,174.62,5.7245]
[1747580149389,141.4,174.73,174.61,76.4651]
[1747580149681,10.41334017,174.72,174.61,70.74]
[1747580149887,12.22804017,174.72,174.61,70.74]
[1747580150189,5.7242,174.64,174.61,70.74]
[1747580151884,5.7239,174.65,174.61,76.4651]
[1747580152085,5.7239,174.65,174.61,70.74]
[1747580152285,70.62,174.68,174.61,70.74]
[1747580153092,5.7244,174.64,174.61,70.74]
[1747580153886,141.24,174.68,174.57,569.4532]
[1747580154091,141.24,174.68,174.57,74.4532]
[1747580154485,141.24,174.68,174.57,80.1794]
[1747580155594,5.7251,174.62,174.57,80.1794]
[1747580155993,141.24,174.68,174.57,80.1794]
[1747580156397,141.24,174.68,174.58,5.7261]
[1747580156794,5.7247,174.63,174.57,74.4532]
[1747580156994,141.24,174.68,174.57,74.4532]
[1747580157297,5.7251,174.62,174.58,5.7261]
[1747580157490,141.24,174.68,174.57,74.4532]
[1747580158197,141.24,174.68,174.58,4.81112007]
[1747580158794,76.3431,174.68,174.6,10.41334017]
[1747580159091,70.62,174.68,174.6,10.41334017]
[1747580159287,70.6,174.7,174.6,81.01334017]
[1747580159494,70.6,174.7,174.63,5.7244]
[1747580160090,70.6,174.7,174.61,4.81112007]
[1747580160792,70.6,174.7,174.59,5.7257]
[1747580160989,70.6,174.7,174.57,90.07558508]
[1747580161295,5.7235,174.67,174.57,90.07558508]
[1747580161496,70.62,174.67,174.57,90.07558508]
[1747580161797,5.7238,174.66,174.62,5.7246]
[1747580161988,70.62,174.67,174.57,90.07558508]
[1747580162392,5.7244,174.64,174.6,5.7253]
[1747580163398,70.62,174.67,174.59,5.7257]
[1747580163608,70.62,174.67,174.57,90.07558508]
[1747580164000,5.7246,174.63,174.59,5.7257]
[1747580164201,70.62,174.67,174.59,5.7257]
[1747580164598,5.7249,174.62,174.59,5.7257]
[1747580164894,70.62,174.67,174.57,95.80168508]
[1747580165104,5.7257,174.6,174.57,9.04224491]
[1747580165303,70.56,174.64,174.57,3.8332]
[1747580165796,5.7258,174.6,174.57,3.8332]
[1747580166300,5.7252,174.61,174.57,3.8332]
[1747580166904,70.56,174.64,174.57,3.8332]
[1747580167097,70.56,174.65,174.6,5.7255]
[1747580167399,70.56,174.65,174.58,4.82640981]
[1747580167601,5.7244,174.64,174.6,5.7255]
[1747580168597,5.7244,174.64,174.61,4.82640981]
[1747580169406,5.7245,174.63,174.61,4.82640981]
[1747580169705,70.56,174.65,174.61,10.55150981]
[1747580170105,5.7244,174.64,174.61,5.7251]
[1747580170400,5.7244,174.64,174.6,5.7254]
[1747580170901,5.7244,174.64,174.57,9.04224491]
[1747580171097,5.7245,174.63,174.57,9.04224491]
[1747580171503,70.56,174.65,174.57,9.04224491]
[1747580172209,5.7254,174.61,174.58,5.7261]
[1747580172408,5.7254,174.61,174.57,9.04224491]
[1747580172409,70.56,174.65,174.57,9.04224491]
[1747580172806,5.7251,174.62,174.58,10.55767846]
[1747580173405,5.7251,174.62,174.54,10.41334017]
[1747580173906,5.7252,174.61,174.58,5.7259]
[1747580174708,5.7252,174.61,174.59,5.7258]
[1747580174907,5.7252,174.61,174.54,10.41334017]
[1747580175205,5.7255,174.6,174.54,10.41334017]
[1747580175408,5.7255,174.6,174.56,5.7265]
[1747580175708,5.7255,174.6,174.54,10.41334017]
[1747580176109,5.7255,174.6,174.57,5.7262]
[1747580176409,70.56,174.65,174.53,52.49746354]
[1747580176608,70.56,174.65,174.56,5.7267]
[1747580177005,5.726,174.59,174.56,5.7267]
[1747580177404,70.64,174.61,174.55,5.727]
[1747580177604,5.7261,174.59,174.55,5.727]
[1747580178108,5.7261,174.59,174.56,5.7268]
[1747580178310,70.64,174.61,174.51,17.37176238]
[1747580178812,70.5,174.6,174.52,5.728]
[1747580179312,70.5,174.6,174.51,12.68672221]
[1747580179913,70.5,174.6,174.52,5.7281]
[1747580182113,5.7272,174.55,174.52,5.7281]
[1747580182414,70.5,174.56,174.46,70.5]
[1747580182608,70.5,174.56,174.45,146.6759]
[1747580182813,5.7281,174.53,174.49,5.729]
[1747580183013,140.98,174.56,174.45,146.6559]
[1747580183513,5.7279,174.53,174.49,5.729]
[1747580184817,5.7282,174.52,174.48,5.7293]
[1747580185117,140.98,174.56,174.45,146.6559]
[1747580185617,5.7281,174.53,174.48,5.7293]
[1747580185810,5.7281,174.53,174.46,4.75605715]
[1747580186012,140.98,174.56,174.46,4.75605715]
[1747580186515,140.98,174.56,174.47,10.41334017]
[1747580186703,5.7273,174.55,174.47,10.41334017]
[1747580187912,5.7273,174.55,174.51,5.7282]
[1747580188217,70.5,174.56,174.48,4.75605715]
[1747580188410,70.5,174.56,174.51,5.7282]
[1747580188610,70.5,174.56,174.48,4.75605715]
[1747580188812,70.5,174.56,174.53,5.7278]
[1747580189210,70.5,174.6,174.47,10.41334017]
[1747580189411,70.5,174.6,174.54,5.7272]
[1747580189919,5.7267,174.57,174.54,5.7272]
[1747580190325,70.5,174.6,174.53,5.7277]
[1747580190512,5.7267,174.57,174.53,5.7277]
[1747580191012,70.5,174.6,174.52,5.728]
[1747580191311,70.5,174.6,174.49,70.46]
[1747580191719,5.7273,174.55,174.47,80.85334017]
[1747580192117,70.5,174.6,174.47,80.85334017]
[1747580192322,70.5,174.6,174.51,5.7282]
[1747580192621,70.5,174.6,174.48,4.75093832]
[1747580192815,5.7278,174.53,174.5,5.7287]
[1747580193015,70.5,174.55,174.48,4.75093832]
[1747580193413,70.5,174.55,174.48,10.48023832]
[1747580193718,70.5,174.55,174.48,4.75093832]
[1747580193918,5.7287,174.51,174.48,4.75093832]
[1747580194120,5.7287,174.51,174.46,4.75093832]
[1747580194314,70.5,174.55,174.46,4.75093832]
[1747580194507,70.5,174.55,174.48,5.7292]
[1747580194711,70.5,174.55,174.46,4.75093832]
[1747580194923,5.7282,174.52,174.48,5.7294]
[1747580195119,70.5,174.55,174.48,5.7294]
[1747580195824,70.5,174.55,174.47,5.7296]
[1747580196123,70.5,174.55,174.45,1.8881]
[1747580196317,70.5,174.55,174.42,10.41334017]
[1747580196514,5.7303,174.46,174.36,20.85097348]
[1747580197015,5.731,174.44,174.36,10.43763331]
[1747580197214,140.92,174.48,174.36,10.43763331]
[1747580197411,140.92,174.48,174.36,20.85097348]
[1747580197622,140.92,174.48,174.43,4.752071]
[1747580198116,5.7307,174.44,174.43,4.752071]
[1747580198421,10.41334017,174.46,174.37,6.95842221]
[1747580198920,5.7321,174.4,174.37,6.95842221]
[1747580199120,140.92,174.42,174.37,6.95842221]
[1747580199822,5.7329,174.38,174.33,96.70366077]